fUST/lending_fUST_20250510
["ID","MTS","AMOUNT","RATE_DAILY","PERIOD"]
[360523439,1746837034553,-151.0,0.00010638,2]
[360523441,1746837034564,-151.0,0.00010638,2]
[360523442,1746837034579,-842.28079861,0.00010638,2]
[360523444,1746837034590,-160.0,0.00010638,2]
[360523445,1746837034601,-422.10928827,0.00010638,2]
[360523446,1746837034614,-160.0,0.00010638,2]
[360523448,1746837034634,-314.10967717,0.00010638,2]
[360523449,1746837034647,-151.0,0.00010639,2]
[360523451,1746837034663,-151.0,0.00010639,2]
[360523452,1746837034675,-273.412883,0.00010639,2]
[360523453,1746837034686,-273.412883,0.00010639,2]
[360523455,1746837034697,-4574.77593349,0.0001064,2]
[360523456,1746837034708,-243.753456,0.0001064,2]
[360523458,1746837034719,-95817.61136672,0.0001065,2]
[360523459,1746837034729,-151.0,0.0001065,2]
[360523460,1746837034743,-151.0,0.0001065,2]
[360523462,1746837034754,-151.0,0.0001065,2]
[360523463,1746837034765,-154.801795,0.0001065,2]
[360523464,1746837034775,-154.801795,0.0001065,2]
[360523466,1746837034786,-273.412883,0.0001065,2]
[360523467,1746837034796,-273.412883,0.0001065,2]
[360523469,1746837034807,-151.0,0.0001065,2]
[360523470,1746837034818,-157.859894,0.0001065,2]
[360523471,1746837034828,-157.859894,0.0001065,2]
[360523473,1746837034838,-151.0,0.0001065,2]
[360523474,1746837034849,-159.8,0.00010651,2]
[360523475,1746837034860,-153.0,0.0001066,2]
[360523477,1746837034871,-153.0,0.0001066,2]
[360523478,1746837034882,-153.0,0.0001066,2]
[360523480,1746837034893,-153.0,0.0001066,2]
[360523481,1746837034903,-153.0,0.0001066,2]
[360523483,1746837034914,-153.0,0.0001066,2]
[360523484,1746837034924,-153.0,0.0001066,2]
[360523485,1746837034935,-153.0,0.0001066,2]
[360523492,1746837035085,-112592.35337327,0.0001066,2]
[360523493,1746837035095,-151.0,0.0001066,2]
[360523494,1746837035104,-151.0,0.0001066,2]
[360523495,1746837035113,-154.801795,0.0001066,2]
[360523496,1746837035123,-154.8018,0.0001066,2]
[360523497,1746837035132,-273.412883,0.0001066,2]
[360523498,1746837035141,-273.412891,0.0001066,2]
[360523499,1746837035151,-151.0,0.0001066,2]
[360523500,1746837035160,-157.859894,0.0001066,2]
[360523501,1746837035169,-157.859894,0.0001066,2]
[360523502,1746837035179,-151.0,0.0001066,2]
[360523503,1746837035188,-160.0,0.00010668,2]
[360523504,1746837035197,-160.0,0.00010668,2]
[360523505,1746837035206,-500.0,0.00010673,2]
[360523506,1746837035219,-312.19434165,0.00010673,2]
[360523508,1746837035229,-518.96642368,0.00010673,2]
[360523509,1746837035242,-500.0,0.00010673,2]
[360523510,1746837035251,-500.0,0.00010673,2]
[360523512,1746837035261,-500.0,0.00010673,2]
[360523513,1746837035271,-500.0,0.00010673,2]
[360523514,1746837035281,-500.43223259,0.00010673,2]
[360523516,1746837035290,-500.0,0.00010673,2]
[360523517,1746837035300,-564.11399247,0.00010673,2]
[360523519,1746837035309,-500.0,0.00010673,2]
[360523520,1746837035319,-500.0,0.00010673,2]
[360523521,1746837035329,-500.35195317,0.00010673,2]
[360523523,1746837035339,-500.0,0.00010673,2]
[360523524,1746837035349,-500.0,0.00010673,2]
[360523525,1746837035358,-500.0,0.00010673,2]
[360523527,1746837035368,-500.0,0.00010673,2]
[360523528,1746837035377,-500.0,0.00010673,2]
[360523530,1746837035386,-444.6497451,0.00010673,2]
[360523531,1746837035395,-500.0,0.00010673,2]
[360523532,1746837035405,-500.0,0.00010673,2]
[360523534,1746837035414,-500.0,0.00010673,2]
[360523535,1746837035423,-164.99115044,0.00010673,2]
[360523537,1746837035432,-500.0,0.00010673,2]
[360523538,1746837035442,-500.0,0.00010673,2]
[360523539,1746837035451,-500.0,0.00010673,2]
[360523541,1746837035460,-500.0,0.00010673,2]
[360523542,1746837035469,-500.0,0.00010673,2]
[360523543,1746837035479,-500.0,0.00010673,2]
[360523545,1746837035491,-412.67142178,0.00010673,2]
[360523546,1746837035501,-500.0,0.00010673,2]
[360523548,1746837035510,-500.0,0.00010673,2]
[360523549,1746837035519,-500.0,0.00010673,2]
[360523550,1746837035528,-500.0,0.00010673,2]
[360523552,1746837035537,-299.73755179,0.00010673,2]
[360523553,1746837035547,-500.0,0.00010673,2]
[360523555,1746837035557,-500.0,0.00010673,2]
[360523556,1746837035575,-500.0,0.00010673,2]
[360523557,1746837035584,-500.0,0.00010673,2]
[360523559,1746837035594,-282.55205004,0.00010673,2]
[360523560,1746837035603,-384.57572057,0.00010673,2]
[360523561,1746837035612,-500.0,0.00010673,2]
[360523563,1746837035622,-500.0,0.00010673,2]
[360523564,1746837035631,-151.0,0.00010673,2]
[360523566,1746837035640,-166.87010314,0.00010673,2]
[360523567,1746837035650,-157.859894,0.00010673,2]
[360523568,1746837035659,-157.859894,0.00010673,2]
[360523570,1746837035669,-151.0,0.00010673,2]
[360523571,1746837035678,-5674.41605348,0.0001069,2]
[360523572,1746837035687,-157.859894,0.00010693,2]
[360523574,1746837035697,-157.859894,0.00010693,2]
[360523575,1746837035707,-8293.31649322,0.00010693,2]
[360523577,1746837035716,-75554.57657405,0.00010694,2]
[360523578,1746837035731,-17022.78794593,0.00010694,2]
[360523581,1746837035765,-12155.4569476,0.00010694,2]
[360523769,1746837038674,-404.0,0.00010394,2]
[360523771,1746837038684,-176202.8296706,0.00010694,2]
[360523776,1746837038731,-3647.92052878,0.00010694,2]
[360524003,1746837040955,-800.0,0.00010694,2]
[360524415,1746837045503,-392.66685032,0.00010694,2]
[360524550,1746837047242,-1.19250021,0.00010694,2]
[360524624,1746837069958,-564.98505374,0.00010227,2]
[360524625,1746837069982,-564.98505375,0.00010455,2]
[360524626,1746837070007,-1660.1522159,0.0001064,2]
[360524627,1746837070034,-500.0,0.00010673,2]
[360524628,1746837070058,-500.0,0.00010673,2]
[360524629,1746837070082,-196209.87767661,0.00010694,2]
[360524630,1746837081290,-1352.2,0.00010694,2]
[360524633,1746837133318,-244.06422832,8.628e-05,2]
[360524634,1746837148600,-294.89386061,8.626e-05,2]
[360524635,1746837163929,-205.10613939,8.626e-05,2]
[360524636,1746837163952,-44.88519981,8.626e-05,2]
[360524637,1746837178662,-245.40971632,8.626e-05,2]
[360524643,1746837572626,-277.83191261,9.326e-05,2]
[360524644,1746837583516,-423.12796635,9.326e-05,2]
[360524645,1746837598441,-222.00598474,9.326e-05,2]
[360524646,1746837613369,-269.11402872,9.326e-05,2]
[360524647,1746837628473,-408.87998654,9.326e-05,2]
[360524648,1746837643360,-172.42093506,9.325e-05,2]
[360524649,1746837643383,-190.86234537,9.325e-05,2]
[360524652,1746837659115,-178.29947224,9.325e-05,2]
[360524653,1746837675702,-130.83818239,9.325e-05,2]
[360524654,1746837675724,-112.25192823,9.325e-05,2]
[360524656,1746837688347,-330.85563664,9.325e-05,2]
[360524659,1746837703936,-164.82901576,9.325e-05,2]
[360524660,1746837703961,-23.75616578,9.325e-05,2]
[360524661,1746837742153,-256.42692587,9.231e-05,2]
[360524662,1746837748666,-10.5243321,9.231e-05,2]
[360524663,1746837797952,-224.50039912,9.226e-05,2]
[360524664,1746837808354,-31.92652675,9.226e-05,2]
[360524667,1746837978157,-193.76506904,9.224e-05,2]
[360524668,1746837990072,-152.0,9.131e-05,2]
[360524669,1746838003420,-180.72872226,9.131e-05,2]
[360524670,1746838018364,-277.44769808,9.131e-05,2]
[360524671,1746838033409,-97.90248121,9.131e-05,2]
[360524672,1746838033431,-41.25966217,9.224e-05,2]
[360524711,1746838231898,-686.11191384,9.222e-05,2]
[360524712,1746838231907,-300.0,9.227e-05,2]
[360524713,1746838231918,-300.0,9.227e-05,2]
[360524715,1746838231927,-300.0,9.227e-05,2]
[360524717,1746838231936,-831.44605778,9.229e-05,2]
[360524719,1746838231945,-1200.0,9.321e-05,2]
[360524721,1746838231954,-300.0,9.321e-05,2]
[360524722,1746838231971,-707.42505638,9.322e-05,2]
[360524792,1746838240371,-95.62106569,9.229e-05,2]
[360524811,1746838243016,-477.52234997,9.229e-05,2]
[360524812,1746838243027,-7673.44214003,9.322e-05,2]
[360524816,1746838246033,-1955.6,9.322e-05,2]
[360524820,1746838498542,-152.92905861,9.12e-05,2]
[360524821,1746838513427,-202.11111492,9.121e-05,2]
[360524822,1746838528890,-153.95982647,9.12e-05,2]
[360524823,1746838720611,-250.0,8.234e-05,2]
[360524824,1746838723858,-302.93302242,8.234e-05,2]
[360524825,1746838738328,-271.7021421,8.234e-05,2]
[360524826,1746838753362,-308.80239652,8.234e-05,2]
[360524827,1746838769189,-250.0,8.234e-05,2]
[360524828,1746838783702,-205.53431612,8.234e-05,2]
[360524829,1746838798320,-394.46568388,8.234e-05,2]
[360524830,1746838813379,-250.0,8.234e-05,2]
[360524831,1746838828307,-181.62220797,8.234e-05,2]
[360524832,1746838843379,-168.3775267,8.234e-05,2]
[360524833,1746838858981,-168.3775267,8.233e-05,2]
[360524834,1746838873924,-331.6224733,8.233e-05,2]
[360524835,1746838873947,-114.27463683,8.233e-05,2]
[360524836,1746838888862,-217.05546893,8.233e-05,2]
[360524837,1746838903394,-168.66989424,8.233e-05,2]
[360524838,1746838903421,-20.6676943,8.233e-05,2]
[360524839,1746838918375,-186.31153893,8.233e-05,2]
[360524840,1746838933418,-186.31153893,8.233e-05,2]
[360524841,1746838948300,-106.70922784,8.233e-05,2]
[360524842,1746838948325,-205.72593399,8.233e-05,2]
[360524843,1746838965822,-237.15815697,8.233e-05,2]
[360524845,1746838980284,-57.11590904,8.233e-05,2]
[360524846,1746838980308,-214.9890071,8.233e-05,2]
[360524847,1746838993421,-227.25376165,8.233e-05,2]
[360524848,1746839008379,-57.75723125,8.233e-05,2]
[360524849,1746839008402,-253.89716387,8.233e-05,2]
[360524850,1746839023939,-135.75766753,8.233e-05,2]
[360524851,1746839023960,-132.58496127,8.234e-05,2]
[360524852,1746839038971,-249.93211424,8.234e-05,2]
[360524853,1746839053384,-164.6234825,8.234e-05,2]
[360524854,1746839068988,-46.85864258,8.234e-05,2]
[360524855,1746839069013,-144.65843624,8.403e-05,2]
[360524857,1746839083902,-296.85736927,8.403e-05,2]
[360524858,1746839098382,-174.30205059,8.403e-05,2]
[360524859,1746839113417,-292.04984736,8.402e-05,2]
[360524860,1746839130123,-29.02291168,8.402e-05,2]
[360524861,1746839130148,-134.534217,8.402e-05,2]
[360524862,1746839143394,-164.21709764,8.402e-05,2]
[360524863,1746839159064,-201.24868536,8.402e-05,2]
[360524864,1746839159091,-17.51663473,8.402e-05,2]
[360524865,1746839174053,-318.07456581,8.402e-05,2]
[360524867,1746839188426,-62.30832385,8.402e-05,2]
[360524868,1746839188450,-153.69225935,8.402e-05,2]
[360524870,1746839203868,-10.52483829,8.402e-05,2]
[360524871,1746839203891,-160.09051247,8.402e-05,2]
[360524872,1746839218374,-58.67480762,8.402e-05,2]
[360524873,1746839218399,-262.06053348,8.402e-05,2]
[360524874,1746839234535,-1.23694233,8.402e-05,2]
[360524875,1746839234559,-178.0008192,8.402e-05,2]
[360524876,1746839248386,-124.7973178,8.402e-05,2]
[360524877,1746839248431,-89.09199378,8.402e-05,2]
[360524879,1746839263445,-108.08297185,8.402e-05,2]
[360524880,1746839263468,-89.63805589,8.402e-05,2]
[360524881,1746839279712,-124.25125569,8.402e-05,2]
[360524882,1746839279736,-110.06332902,8.403e-05,2]
[360524883,1746839294664,-232.98726067,8.402e-05,2]
[360524884,1746839308969,-92.17542489,8.402e-05,2]
[360524885,1746839308993,-138.41568027,8.402e-05,2]
[360524886,1746839323416,-154.30924315,8.142e-05,2]
[360524888,1746839338405,-308.22168565,8.142e-05,2]
[360524889,1746839338427,-66.73285232,8.402e-05,2]
[360524890,1746839353347,-27.83872808,8.402e-05,2]
[360524891,1746839353368,-148.89540755,8.403e-05,2]
[360524895,1746839368404,-356.48415118,8.403e-05,2]
[360524899,1746839383342,-157.05194498,8.403e-05,2]
[360524900,1746839398404,-201.01492869,8.403e-05,2]
[360524904,1746839413962,-158.98507131,8.403e-05,2]
[360524905,1746839428391,-189.02153651,8.403e-05,2]
[360524948,1746839432051,-1100.0,8.403e-05,2]
[360524954,1746839432102,-1699.25722786,8.403e-05,2]
[360524956,1746839432112,-1733.4375611,8.963e-05,2]
[360524959,1746839432123,-1200.0,9.121e-05,2]
[360524961,1746839432133,-1000.0,9.122e-05,2]
[360524963,1746839432142,-500.0,9.122e-05,2]
[360524965,1746839432152,-300.0,9.239e-05,2]
[360524967,1746839432161,-300.0,9.239e-05,2]
[360524969,1746839432171,-302.21917012,9.24e-05,2]
[360524971,1746839432180,-209.48697282,9.24e-05,2]
[360524973,1746839432190,-290.28944272,9.24e-05,2]
[360524976,1746839432199,-932.9778701,9.256e-05,2]
[360524978,1746839432209,-1700.0,9.972e-05,2]
[360524980,1746839432218,-50000.0,9.972e-05,2]
[360525000,1746839432389,-153.0,9.98e-05,2]
[360525002,1746839432398,-426.82,0.0001,2]
[360525004,1746839432408,-6000.0,0.0001,2]
[360525006,1746839432417,-207.4,0.00010027,2]
[360525008,1746839432427,-420.0,0.00010163,2]
[360525010,1746839432436,-487.57009781,0.00010172,2]
[360525012,1746839432445,-723.37026209,0.00010266,2]
[360525014,1746839432454,-2933.98408222,0.000103,2]
[360525016,1746839432466,-3700.66911253,0.000103,2]
[360525018,1746839432476,-6634.65319457,0.000103,2]
[360525020,1746839432485,-6634.65319457,0.000103,2]
[360525022,1746839432495,-6634.65319457,0.000103,2]
[360525024,1746839432504,-900.99956598,0.00010313,2]
[360525026,1746839432514,-900.99956597,0.00010383,2]
[360525028,1746839432523,-160.0,0.00010413,2]
[360525030,1746839432534,-314.10967717,0.00010413,2]
[360525032,1746839432543,-212.1195172,0.00010413,2]
[360525034,1746839432556,-12617.32522221,0.00010413,2]
[360525036,1746839432566,-160.0,0.00010413,2]
[360525038,1746839432576,-160.0,0.00010413,2]
[360525040,1746839432586,-160.0,0.00010422,2]
[360525042,1746839432597,-6634.65319457,0.00010452,2]
[360525044,1746839432609,-900.99956597,0.00010454,2]
[360525047,1746839432619,-900.99956597,0.00010524,2]
[360525049,1746839432628,-161.724,0.0001058,2]
[360525050,1746839432639,-900.99956597,0.00010594,2]
[360525052,1746839432649,-1433.3330775,0.0001064,2]
[360525054,1746839432658,-500.0,0.00010673,2]
[360525056,1746839432668,-422.10997939,0.00010673,2]
[360525059,1746839432678,-500.0,0.00010673,2]
[360525061,1746839432688,-445.67883435,0.00010673,2]
[360525062,1746839432698,-351.58066683,0.00010673,2]
[360525065,1746839432708,-500.0,0.00010673,2]
[360525067,1746839432718,-500.0,0.00010673,2]
[360525069,1746839432727,-500.0,0.00010673,2]
[360525071,1746839432737,-500.0,0.00010673,2]
[360525073,1746839432748,-500.0,0.00010673,2]
[360525075,1746839432757,-500.0,0.00010673,2]
[360525077,1746839432767,-500.0,0.00010673,2]
[360525079,1746839432777,-501.67514297,0.00010673,2]
[360525081,1746839432789,-500.0,0.00010673,2]
[360525083,1746839432799,-500.0,0.00010673,2]
[360525085,1746839432808,-500.0,0.00010673,2]
[360525087,1746839432818,-500.0,0.00010673,2]
[360525089,1746839432827,-191.44444629,0.00010673,2]
[360525091,1746839432837,-500.0,0.00010673,2]
[360525093,1746839432846,-500.0,0.00010673,2]
[360525095,1746839432856,-500.0,0.00010673,2]
[360525097,1746839432865,-500.0,0.00010673,2]
[360525099,1746839432874,-466.12850489,0.0001068,2]
[360525101,1746839432884,-160.0,0.00010691,2]
[360525103,1746839432893,-160.0,0.00010691,2]
[360525104,1746839432902,-74.8098281,0.00010691,2]
[360525240,1746839438096,-767.47097051,0.00010691,2]
[360525242,1746839438105,-422.10928827,0.00010691,2]
[360525244,1746839438115,-160.0,0.00010691,2]
[360525246,1746839438124,-160.0,0.00010691,2]
[360525249,1746839438134,-1860.44084413,0.00010693,2]
[360525250,1746839438147,-110561.23609888,0.00010694,2]
[360525444,1746839440918,-0.00352315,0.00010694,2]
[360525450,1746839440966,-65265.92437705,0.00010694,2]
[360525474,1746839443230,-404.0,0.00010403,2]
[360525475,1746839443240,-105109.45076614,0.00010694,2]
[360525540,1746839540018,-254.80500556,8.402e-05,2]
[360525541,1746839548443,-51.05716185,8.402e-05,2]
[360525544,1746839627881,-248.94283815,8.402e-05,2]
[360525594,1746840632251,-250.0,9.061e-05,2]
[360525595,1746840632260,-353.16075948,9.466e-05,2]
[360525597,1746840632269,-300.0,9.467e-05,2]
[360525599,1746840632279,-1200.0,9.467e-05,2]
[360525601,1746840632288,-300.0,9.467e-05,2]
[360525603,1746840632298,-325.00198493,9.467e-05,2]
[360525605,1746840632308,-318.49866443,9.467e-05,2]
[360525607,1746840632317,-194.36417092,9.467e-05,2]
[360525609,1746840632329,-13369.0418736,9.468e-05,2]
[360525611,1746840632338,-1605.48028086,9.722e-05,2]
[360525612,1746840632347,-1600.0,9.972e-05,2]
[360525614,1746840632357,-207.4,0.00010294,2]
[360525616,1746840632366,-6218.91806918,0.000103,2]
[360525649,1746840638270,-8114.91580151,0.000103,2]
[360525662,1746840638389,-2769.4530975,0.000103,2]
[360525664,1746840638398,-5528.87766219,0.000103,2]
[360525666,1746840638407,-5528.87766214,0.000103,2]
[360525668,1746840638416,-367.59628912,0.00010314,2]
[360525670,1746840638425,-367.59628911,0.00010384,2]
[360525672,1746840638435,-160.0,0.00010395,2]
[360525674,1746840638444,-842.28079861,0.00010395,2]
[360525676,1746840638453,-160.0,0.00010395,2]
[360525678,1746840638462,-422.10928827,0.00010395,2]
[360525679,1746840638471,-160.0,0.00010395,2]
[360525680,1746840638480,-160.0,0.00010395,2]
[360525681,1746840638489,-160.0,0.00010395,2]
[360525682,1746840638499,-547.352,0.00010403,2]
[360525683,1746840638508,-709.823,0.00010403,2]
[360525684,1746840638518,-2216.558,0.00010403,2]
[360525685,1746840638527,-404.0,0.00010403,2]
[360525686,1746840638536,-5528.87766214,0.00010403,2]
[360525687,1746840638546,-241.0,0.00010414,2]
[360525688,1746840638555,-491.0,0.00010414,2]
[360525689,1746840638565,-268.0,0.00010414,2]
[360525690,1746840638574,-367.59628911,0.00010454,2]
[360525691,1746840638583,-367.59628911,0.00010524,2]
[360525692,1746840638593,-367.59628911,0.00010594,2]
[360525693,1746840638603,-1215.6710467,0.0001064,2]
[360525694,1746840638612,-465.05642524,0.00010653,2]
[360525695,1746840638622,-500.0,0.00010673,2]
[360525696,1746840638632,-500.0,0.00010673,2]
[360525697,1746840638641,-451.01063842,0.00010673,2]
[360525698,1746840638650,-500.0,0.00010673,2]
[360525699,1746840638659,-500.0,0.00010673,2]
[360525700,1746840638668,-500.0,0.00010673,2]
[360525701,1746840638678,-500.0,0.00010673,2]
[360525702,1746840638687,-500.0,0.00010673,2]
[360525703,1746840638697,-500.0,0.00010673,2]
[360525704,1746840638706,-500.0,0.00010673,2]
[360525705,1746840638716,-500.0,0.00010673,2]
[360525706,1746840638725,-500.0,0.00010673,2]
[360525707,1746840638734,-500.0,0.00010673,2]
[360525708,1746840638744,-500.0,0.00010673,2]
[360525709,1746840638753,-500.0,0.00010673,2]
[360525710,1746840638762,-500.0,0.00010673,2]
[360525711,1746840638772,-208.29046209,0.00010673,2]
[360525712,1746840638781,-500.0,0.00010673,2]
[360525713,1746840638791,-500.0,0.00010673,2]
[360525714,1746840638800,-505.16882968,0.00010673,2]
[360525715,1746840638810,-517.89527722,0.00010673,2]
[360525716,1746840638819,-511.35622131,0.00010673,2]
[360525717,1746840638829,-502.46829828,0.00010673,2]
[360525718,1746840638839,-500.0,0.00010673,2]
[360525719,1746840638848,-18022.9865906,0.0001069,2]
[360526088,1746840796846,3000.0,0.000155,30]
[360526094,1746840906393,3000.0,0.000155,30]
[360526194,1746841832675,-426.651686,9.622e-05,2]
[360526196,1746841832685,-156.3251884,9.666e-05,2]
[360526200,1746841832708,-1043.6748116,9.666e-05,2]
[360526201,1746841832717,-500.0,9.667e-05,2]
[360526203,1746841832727,-500.0,9.667e-05,2]
[360526205,1746841832736,-368.72799319,9.667e-05,2]
[360526207,1746841832745,-192.00292067,9.67e-05,2]
[360526299,1746841838358,-152.08088813,9.665e-05,2]
[360526300,1746841838369,-594.84159592,9.665e-05,2]
[360526301,1746841838378,-107.99707933,9.67e-05,2]
[360526302,1746841838387,-300.0,9.671e-05,2]
[360526303,1746841838397,-300.0,9.671e-05,2]
[360526304,1746841838406,-1211.69482942,9.674e-05,2]
[360526749,1746842366856,-296.23825,8.748e-05,2]
[360526750,1746842370032,-221.89126153,8.748e-05,2]
[360526751,1746842384027,-356.61546839,8.748e-05,2]
[360526752,1746842399151,-369.64319091,8.748e-05,2]
[360526753,1746842413360,-210.1355447,8.748e-05,2]
[360526755,1746842429321,-262.59690366,8.748e-05,2]
[360526756,1746842443344,-300.0,8.747e-05,2]
[360526757,1746842458439,-172.9028648,8.747e-05,2]
[360526759,1746842473438,-27.0971352,8.747e-05,2]
[360526760,1746842473462,-138.28793749,8.747e-05,2]
[360526761,1746842488414,-120.47284615,8.747e-05,2]
[360526762,1746842488436,-141.23921636,8.748e-05,2]
[360526763,1746842503352,-399.55276082,8.748e-05,2]
[360526764,1746842518610,-425.29629828,8.748e-05,2]
[360526765,1746842533378,-170.38453363,8.748e-05,2]
[360526766,1746842549527,-271.60074499,8.747e-05,2]
[360526767,1746842563601,-200.0,8.746e-05,2]
[360526768,1746842578516,-290.24904074,8.746e-05,2]
[360526769,1746842593363,-9.75095926,8.746e-05,2]
[360526770,1746842593387,-172.33196476,8.746e-05,2]
[360526771,1746842608444,-54.00293253,8.746e-05,2]
[360526772,1746842608467,-192.13759947,8.746e-05,2]
[360526774,1746842623350,-83.54693375,8.746e-05,2]
[360526775,1746842623374,-200.0,8.746e-05,2]
[360526776,1746842623398,-16.45306625,8.746e-05,2]
[360526777,1746842638484,-157.77534564,8.746e-05,2]
[360526778,1746842653411,-87.62137384,8.746e-05,2]
[360526779,1746842653435,-354.60328052,8.748e-05,2]
[360526780,1746842669032,-300.0,8.748e-05,2]
[360526781,1746842683379,-300.0,8.748e-05,2]
[360526782,1746842699547,-182.06551844,8.748e-05,2]
[360526783,1746842713360,-322.12461112,8.748e-05,2]
[360526784,1746842728433,-322.12461112,8.748e-05,2]
[360526785,1746842743383,-462.76566017,8.748e-05,2]
[360526786,1746842758494,-294.24922224,8.748e-05,2]
[360526787,1746842773378,-294.24922224,8.748e-05,2]
[360526788,1746842788454,-213.16390635,8.646e-05,2]
[360526789,1746842788478,-105.30399159,8.748e-05,2]
[360526790,1746842803992,-364.03407053,8.748e-05,2]
[360526791,1746842819115,-423.12796635,8.748e-05,2]
[360526792,1746842833346,-222.00598474,8.748e-05,2]
[360526793,1746842848479,-269.11402872,8.748e-05,2]
[360526794,1746842863414,-26.90941694,8.748e-05,2]
[360526795,1746842863436,-381.9705696,8.787e-05,2]
[360526796,1746842878978,-172.42093506,8.787e-05,2]
[360526798,1746842893399,-190.86234537,8.747e-05,2]
[360526799,1746842908957,-9.9578447,8.747e-05,2]
[360526800,1746842908979,-168.34162754,8.787e-05,2]
[360526805,1746842923386,-53.7053615,8.787e-05,2]
[360526806,1746842932493,-189.38474912,8.747e-05,2]
[360526807,1746842938462,-1.47759625,8.747e-05,2]
[360526832,1746843032514,-421.38958286,9.459e-05,2]
[360526833,1746843032523,-222.44483203,9.46e-05,2]
[360526834,1746843032532,-1000.0,9.461e-05,2]
[360526835,1746843032542,-1200.0,9.559e-05,2]
[360526836,1746843032552,-300.0,9.56e-05,2]
[360526837,1746843032561,-300.0,9.56e-05,2]
[360526838,1746843032570,-300.0,9.56e-05,2]
[360526839,1746843032579,-300.0,9.56e-05,2]
[360526840,1746843032588,-300.0,9.56e-05,2]
[360526841,1746843032597,-12523.85061147,9.561e-05,2]
[360526842,1746843032607,-500.0,9.561e-05,2]
[360526843,1746843032617,-367.14395219,9.561e-05,2]
[360526845,1746843032627,-194.12236708,9.561e-05,2]
[360526847,1746843032636,-159.81258223,9.561e-05,2]
[360526849,1746843032645,-5791.29812,9.562e-05,2]
[360526851,1746843032655,-2003.2796836,9.636e-05,2]
[360526853,1746843032664,-461.5108713,9.644e-05,2]
[360526855,1746843032673,-461.5108713,9.699e-05,2]
[360526857,1746843032683,-461.5108713,9.753e-05,2]
[360526859,1746843032692,-461.5108713,9.781e-05,2]
[360526861,1746843032701,-461.5108713,9.836e-05,2]
[360526864,1746843032710,-461.5108713,9.89e-05,2]
[360526867,1746843032719,-461.5108713,9.945e-05,2]
[360526870,1746843032728,-461.5108713,9.973e-05,2]
[360526873,1746843032737,-461.5108713,0.00010027,2]
[360526875,1746843032746,-461.5108713,0.00010082,2]
[360526877,1746843032756,-461.5108713,0.0001011,2]
[360526879,1746843032765,-327.43167688,0.00010122,2]
[360526881,1746843032774,-226.21874148,0.00010158,2]
[360526883,1746843032784,-461.5108713,0.00010164,2]
[360526885,1746843032793,-4984.2969633,0.000102,2]
[360526887,1746843032802,-4984.29696315,0.000102,2]
[360526893,1746843032915,-4984.29696315,0.000102,2]
[360526894,1746843032926,-4984.29696315,0.000102,2]
[360526895,1746843032936,-151.99705085,0.000102,2]
[360526896,1746843032945,-2068.21608118,0.00010277,2]
[360526897,1746843032955,-2241.0,0.00010324,2]
[360526898,1746843032964,-404.0,0.00010328,2]
[360526899,1746843032973,-4984.29696315,0.00010331,2]
[360526900,1746843032983,-2068.21608114,0.00010356,2]
[360526901,1746843032992,-160.0,0.00010377,2]
[360526902,1746843033001,-160.0,0.00010386,2]
[360526903,1746843033010,-150.102,0.00010403,2]
[360526904,1746843033019,-546.0,0.00010403,2]
[360526905,1746843033029,-708.0,0.00010403,2]
[360526906,1746843033039,-327.43167689,0.00010403,2]
[360526907,1746843033048,-2068.21608114,0.00010436,2]
[360526908,1746843033058,-4984.29696315,0.00010514,2]
[360526909,1746843033068,-2068.21608114,0.00010515,2]
[360526910,1746843033079,-1382.0,0.00010515,2]
[360526911,1746843033088,-420.0,0.00010516,2]
[360526912,1746843033098,-420.0,0.00010516,2]
[360526913,1746843033107,-220.52308074,0.0001058,2]
[360526914,1746843033117,-10651.12230792,0.00010582,2]
[360526915,1746843033142,-61349.6636094,0.00010582,2]
[360526916,1746843033152,-531.51398254,0.00010582,2]
[360526917,1746843033162,-2068.21608114,0.00010594,2]
[360526918,1746843033171,-1138.65,0.000106,2]
[360526919,1746843033180,-1000.0,0.000106,3]
[360526920,1746843033190,-427.39337829,0.0001064,2]
[360527088,1746843596150,400.12,8.01e-05,2]
[360527107,1746844134602,-329.37804039,9.06e-05,2]
[360527108,1746844139281,-164.83253891,9.06e-05,2]
[360527149,1746844231797,-475.4618623,9.059e-05,2]